fUSD/lending_fUSD_20260515
["ID","MTS","AMOUNT","RATE_DAILY","PERIOD"]
[422327754,1778825452000,-314.0,0.000278,2]
[422327789,1778825452000,-3988.29851587,0.00028054,2]
[422327786,1778825452000,-757.96,0.00028021,7]
[422327801,1778825452000,-1402.9,0.00028188,30]
[422327790,1778825452000,-1198.35,0.00028056,7]
[422327784,1778825452000,-678.99,0.00028,2]
[422327759,1778825452000,-742.22,0.00027899,2]
[422327756,1778825452000,-1234.16,0.00027807,30]
[422327760,1778825452000,-1074.49,0.00027915,2]
[422327764,1778825452000,-1234.16,0.00027937,2]
[422327763,1778825452000,-475.3,0.00027936,2]
[422327762,1778825452000,-1402.9,0.00027927,2]
[422327755,1778825452000,-475.3,0.00027807,30]
[422327765,1778825452000,-475.49,0.00027947,2]
[422327761,1778825452000,-1198.35,0.00027926,2]
[422327766,1778825452000,-15397.5578527,0.00027972,2]
[422327768,1778825452000,-171.12,0.00027976,30]
[422327767,1778825452000,-171.12,0.00027976,30]
[422327770,1778825452000,-51568.19870238,0.00028,2]
[422327757,1778825452000,-475.49,0.00027819,30]
[422327787,1778825452000,-742.22,0.00028032,7]
[422327779,1778825452000,-678.99,0.00028,2]
[422327783,1778825452000,-678.99,0.00028,2]
[422327781,1778825452000,-678.99,0.00028,2]
[422327777,1778825452000,-678.99,0.00028,2]
[422327778,1778825452000,-678.99,0.00028,2]
[422327776,1778825452000,-678.99,0.00028,2]
[422327780,1778825452000,-678.99,0.00028,2]
[422327774,1778825452000,-600.0,0.00028,2]
[422327772,1778825452000,-320.76,0.00028,30]
[422327775,1778825452000,-214.997284,0.00028,10]
[422327771,1778825452000,-160.0,0.00028,2]
[422327769,1778825452000,-817.62,0.00027999,30]
[422327773,1778825452000,-643.0,0.00028,2]
[422327861,1778825453000,-500.0,0.00028493,60]
[422327860,1778825453000,-150.0,0.00028493,60]
[422327856,1778825453000,-374.27673268,0.00028493,60]
[422327855,1778825453000,-150.0,0.00028493,60]
[422327852,1778825453000,-150.0,0.00028493,60]
[422327845,1778825453000,-500.0,0.00028493,60]
[422327844,1778825453000,-203.38924387,0.00028493,60]
[422327853,1778825453000,-500.0,0.00028493,60]
[422327846,1778825453000,-500.0,0.00028493,60]
[422327847,1778825453000,-150.0,0.00028493,60]
[422327849,1778825453000,-150.0,0.00028493,60]
[422327863,1778825453000,-500.0,0.00028493,60]
[422327848,1778825453000,-500.0,0.00028493,60]
[422327858,1778825453000,-150.0,0.00028493,60]
[422327869,1778825453000,-500.0,0.00028493,60]
[422327857,1778825453000,-500.0,0.00028493,60]
[422327862,1778825453000,-150.0,0.00028493,60]
[422327867,1778825453000,-500.0,0.00028493,60]
[422327859,1778825453000,-500.0,0.00028493,60]
[422327864,1778825453000,-500.0,0.00028493,60]
[422327865,1778825453000,-150.0,0.00028493,60]
[422327880,1778825453000,-500.0,0.00028493,7]
[422327879,1778825453000,-500.0,0.00028493,7]
[422327870,1778825453000,-169.46289066,0.00028493,60]
[422327868,1778825453000,-150.0,0.00028493,60]
[422327871,1778825453000,-503.3815445,0.00028493,60]
[422327872,1778825453000,-163.69546163,0.00028493,60]
[422327873,1778825453000,-500.0,0.00028493,60]
[422327866,1778825453000,-500.0,0.00028493,60]
[422327854,1778825453000,-500.0,0.00028493,60]
[422327824,1778825453000,-742.22,0.00028432,7]
[422327851,1778825453000,-500.0,0.00028493,60]
[422327878,1778825453000,-500.0,0.00028493,7]
[422327825,1778825453000,-2392.84779913,0.00028437,2]
[422327827,1778825453000,-1074.49,0.00028442,7]
[422327826,1778825453000,-2392.84779913,0.0002844,2]
[422327816,1778825453000,-1709.78453167,0.00028311,30]
[422327818,1778825453000,-1402.9,0.00028318,2]
[422327820,1778825453000,-1234.16,0.00028325,2]
[422327819,1778825453000,-475.3,0.00028325,2]
[422327821,1778825453000,-475.49,0.00028333,2]
[422327817,1778825453000,-1198.35,0.00028318,2]
[422327822,1778825453000,-167.91,0.00028356,7]
[422327823,1778825453000,-757.96,0.00028425,7]
[422327836,1778825453000,-500.0,0.00028493,60]
[422327850,1778825453000,-500.0,0.00028493,60]
[422327840,1778825453000,-150.0,0.00028493,60]
[422327831,1778825453000,-1234.16,0.00028455,7]
[422327838,1778825453000,-150.0,0.00028493,60]
[422327829,1778825453000,-1402.9,0.00028449,7]
[422327830,1778825453000,-475.3,0.00028455,7]
[422327828,1778825453000,-1198.35,0.00028448,7]
[422327837,1778825453000,-150.0,0.00028493,60]
[422327835,1778825453000,-150.0,0.00028493,60]
[422327839,1778825453000,-524.43657942,0.00028493,60]
[422327832,1778825453000,-475.49,0.00028461,7]
[422327834,1778825453000,-2392.84779913,0.00028488,2]
[422327841,1778825453000,-281.89852311,0.00028493,60]
[422327843,1778825453000,-150.0,0.00028493,60]
[422327842,1778825453000,-150.0,0.00028493,60]
[422327833,1778825453000,-2392.84779913,0.00028467,2]
[422327874,1778825453000,-500.0,0.00028493,60]
[422327876,1778825453000,-500.0,0.00028493,7]
[422327875,1778825453000,-543.52520004,0.00028493,60]
[422327917,1778825453000,-500.0,0.00028493,60]
[422327910,1778825453000,-150.0,0.00028493,2]
[422327912,1778825453000,-500.0,0.00028493,60]
[422327909,1778825453000,-500.0,0.00028493,60]
[422327911,1778825453000,-240.52612769,0.00028493,60]
[422327913,1778825453000,-500.0,0.00028493,60]
[422327929,1778825453000,-500.0,0.00028493,60]
[422327918,1778825453000,-150.0,0.00028493,2]
[422327921,1778825453000,-500.0,0.00028493,60]
[422327920,1778825453000,-500.0,0.00028493,60]
[422327919,1778825453000,-500.0,0.00028493,60]
[422327923,1778825453000,-500.0,0.00028493,60]
[422327927,1778825453000,-500.0,0.00028493,60]
[422327916,1778825453000,-151.6174179,0.00028493,2]
[422327925,1778825453000,-500.0,0.00028493,60]
[422327924,1778825453000,-500.0,0.00028493,60]
[422327926,1778825453000,-500.0,0.00028493,60]
[422327928,1778825453000,-150.0,0.00028493,60]
[422327931,1778825453000,-500.0,0.00028493,60]
[422327930,1778825453000,-150.0,0.00028493,60]
[422327932,1778825453000,-150.0,0.00028493,60]
[422327937,1778825453000,-500.0,0.00028493,60]
[422327933,1778825453000,-192.58872162,0.00028493,60]
[422327934,1778825453000,-500.0,0.00028493,60]
[422327935,1778825453000,-150.0,0.00028493,2]
[422327936,1778825453000,-500.0,0.00028493,60]
[422327940,1778825453000,-500.0,0.00028493,60]
[422327939,1778825453000,-500.0,0.00028493,60]
[422327922,1778825453000,-500.0,0.00028493,60]
[422327914,1778825453000,-500.0,0.00028493,2]
[422327938,1778825453000,-500.0,0.00028493,60]
[422327915,1778825453000,-500.0,0.00028493,60]
[422327877,1778825453000,-500.0,0.00028493,7]
[422327881,1778825453000,-150.0,0.00028493,60]
[422327883,1778825453000,-150.0,0.00028493,60]
[422327885,1778825453000,-500.0,0.00028493,7]
[422327882,1778825453000,-500.0,0.00028493,7]
[422327892,1778825453000,-500.0,0.00028493,60]
[422327889,1778825453000,-278.3808491,0.00028493,7]
[422327886,1778825453000,-150.0,0.00028493,60]
[422327908,1778825453000,-500.0,0.00028493,2]
[422327887,1778825453000,-500.0,0.00028493,7]
[422327891,1778825453000,-500.0,0.00028493,60]
[422327884,1778825453000,-500.0,0.00028493,7]
[422327890,1778825453000,-185.7012659,0.00028493,60]
[422327894,1778825453000,-500.0,0.00028493,2]
[422327888,1778825453000,-150.0,0.00028493,60]
[422327895,1778825453000,-500.0,0.00028493,60]
[422327907,1778825453000,-521.92567295,0.00028493,60]
[422327893,1778825453000,-500.0,0.00028493,60]
[422327906,1778825453000,-500.0,0.00028493,60]
[422327905,1778825453000,-500.0,0.00028493,2]
[422327900,1778825453000,-500.0,0.00028493,60]
[422327902,1778825453000,-500.0,0.00028493,2]
[422327904,1778825453000,-500.0,0.00028493,60]
[422327903,1778825453000,-500.0,0.00028493,60]
[422327898,1778825453000,-500.0,0.00028493,60]
[422327897,1778825453000,-500.0,0.00028493,2]
[422327899,1778825453000,-500.0,0.00028493,2]
[422327896,1778825453000,-500.0,0.00028493,60]
[422327901,1778825453000,-500.0,0.00028493,60]
[422327979,1778825454000,-2392.84779913,0.00028687,2]
[422327984,1778825454000,-1402.9,0.0002871,2]
[422327980,1778825454000,-757.96,0.00028694,2]
[422327989,1778825454000,-181.65711183,0.00028746,30]
[422327972,1778825454000,-475.3,0.00028584,30]
[422327976,1778825454000,-2392.84779913,0.00028601,2]
[422327970,1778825454000,-1198.35,0.00028579,30]
[422327971,1778825454000,-1402.9,0.0002858,30]
[422327975,1778825454000,-5364.0,0.000286,7]
[422327974,1778825454000,-475.49,0.0002859,30]
[422327973,1778825454000,-1234.16,0.00028585,30]
[422327986,1778825454000,-1234.16,0.00028714,2]
[422327998,1778825454000,-1178.687896,0.00028767,7]
[422327983,1778825454000,-1198.35,0.0002871,2]
[422327985,1778825454000,-475.3,0.00028714,2]
[422327981,1778825454000,-742.22,0.00028699,2]
[422327988,1778825454000,-608.0,0.00028739,3]
[422327982,1778825454000,-1074.49,0.00028705,2]
[422327991,1778825454000,-1178.687896,0.00028767,7]
[422327990,1778825454000,-150.0,0.00028746,30]
[422328001,1778825454000,-1178.687896,0.00028767,7]
[422327992,1778825454000,-1178.687896,0.00028767,7]
[422327995,1778825454000,-1178.687896,0.00028767,7]
[422327997,1778825454000,-1178.687896,0.00028767,7]
[422328000,1778825454000,-1178.687896,0.00028767,7]
[422327977,1778825454000,-2392.84779913,0.00028666,2]
[422327987,1778825454000,-475.49,0.00028718,2]
[422327967,1778825454000,-742.22,0.00028566,30]
[422327955,1778825454000,-500.0,0.00028493,60]
[422327969,1778825454000,-2392.84779913,0.00028575,2]
[422327996,1778825454000,-1178.687896,0.00028767,7]
[422327941,1778825454000,-500.0,0.00028493,60]
[422327942,1778825454000,-500.0,0.00028493,60]
[422327943,1778825454000,-500.0,0.00028493,60]
[422327945,1778825454000,-500.0,0.00028493,60]
[422327946,1778825454000,-485.02515162,0.00028493,60]
[422327948,1778825454000,-500.0,0.00028493,60]
[422327947,1778825454000,-303.54620549,0.00028493,60]
[422327944,1778825454000,-500.0,0.00028493,60]
[422327950,1778825454000,-500.0,0.00028493,60]
[422327952,1778825454000,-500.0,0.00028493,60]
[422327954,1778825454000,-500.0,0.00028493,60]
[422327951,1778825454000,-500.0,0.00028493,60]
[422327949,1778825454000,-500.0,0.00028493,60]
[422327953,1778825454000,-500.0,0.00028493,60]
[422327956,1778825454000,-500.0,0.00028493,60]
[422327966,1778825454000,-757.96,0.0002856,30]
[422327959,1778825454000,-500.0,0.00028493,60]
[422327958,1778825454000,-500.0,0.00028493,60]
[422327965,1778825454000,-2392.84779913,0.00028538,2]
[422327964,1778825454000,-171.12,0.00028523,30]
[422327957,1778825454000,-500.0,0.00028493,60]
[422327962,1778825454000,-169.23,0.00028493,2]
[422327963,1778825454000,-171.12,0.00028523,30]
[422327960,1778825454000,-500.0,0.00028493,60]
[422327961,1778825454000,-357.13411433,0.00028493,60]
[422327968,1778825454000,-1074.49,0.00028574,30]
[422327978,1778825454000,-2392.84779913,0.00028681,2]
[422327999,1778825454000,-1178.687896,0.00028767,7]
[422328011,1778825454000,-1234.16,0.00028844,7]
[422327994,1778825454000,-1178.687896,0.00028767,7]
[422328032,1778825454000,-151.0,0.00028966,7]
[422328028,1778825454000,-1178.687896,0.00028966,7]
[422328038,1778825454000,-475.3,0.00028973,30]
[422328034,1778825454000,-151.0,0.00028966,7]
[422328031,1778825454000,-1038.024002,0.00028966,7]
[422328035,1778825454000,-1074.49,0.00028969,30]
[422328036,1778825454000,-1198.35,0.00028971,30]
[422328039,1778825454000,-1234.16,0.00028973,30]
[422328041,1778825454000,-2900.42,0.00029,14]
[422328040,1778825454000,-475.49,0.00028975,30]
[422328043,1778825454000,-509.42387583,0.00029,2]
[422328042,1778825454000,-1574.39988005,0.00029,2]
[422328030,1778825454000,-742.22,0.00028966,30]
[422328046,1778825454000,-1029.39030039,0.0002902,30]
[422328047,1778825454000,-757.96,0.00029098,2]
[422328048,1778825454000,-742.22,0.00029099,2]
[422328049,1778825454000,-16249.31,0.000291,2]
[422328045,1778825454000,-214.997284,0.00029,30]
[422328050,1778825454000,-1074.49,0.00029101,2]
[422328052,1778825454000,-1402.9,0.00029102,2]
[422328053,1778825454000,-475.3,0.00029103,2]
[422328054,1778825454000,-1234.16,0.00029103,2]
[422328051,1778825454000,-1198.35,0.00029102,2]
[422328057,1778825454000,-152.241,0.0002912,30]
[422328058,1778825454000,-200.0,0.00029137,7]
[422328059,1778825454000,-200.0,0.00029137,7]
[422328044,1778825454000,-151.313879,0.00029,7]
[422328027,1778825454000,-1038.024002,0.00028966,7]
[422328055,1778825454000,-475.49,0.00029104,2]
[422328033,1778825454000,-151.0,0.00028966,7]
[422328029,1778825454000,-1038.024002,0.00028966,7]
[422328002,1778825454000,-1178.687896,0.00028767,7]
[422328006,1778825454000,-742.22,0.00028832,7]
[422328005,1778825454000,-757.96,0.00028829,7]
[422328008,1778825454000,-1198.35,0.0002884,7]
[422328004,1778825454000,-2392.84779913,0.00028825,2]
[422328010,1778825454000,-475.3,0.00028844,7]
[422328007,1778825454000,-1074.49,0.00028837,7]
[422328003,1778825454000,-2392.84779913,0.00028794,2]
[422328056,1778825454000,-152.0,0.00029115,9]
[422328012,1778825454000,-475.49,0.00028847,7]
[422328009,1778825454000,-1402.9,0.00028841,7]
[422328013,1778825454000,-1106.25305605,0.00028849,3]
[422327993,1778825454000,-1178.687896,0.00028767,7]
[422328015,1778825454000,-500.0,0.00028899,2]
[422328025,1778825454000,-1178.687896,0.00028966,7]
[422328026,1778825454000,-1038.024002,0.00028966,7]
[422328037,1778825454000,-1402.9,0.00028971,30]
[422328018,1778825454000,-757.96,0.00028963,30]
[422328019,1778825454000,-430.434876,0.00028966,7]
[422328020,1778825454000,-430.434876,0.00028966,7]
[422328022,1778825454000,-430.434876,0.00028966,7]
[422328017,1778825454000,-2578.93,0.000289,7]
[422328014,1778825454000,-2392.84779913,0.00028885,2]
[422328016,1778825454000,-2000.0,0.000289,2]
[422328021,1778825454000,-430.434876,0.00028966,7]
[422328023,1778825454000,-1178.687896,0.00028966,7]
[422328024,1778825454000,-1178.687896,0.00028966,7]
[422328086,1778825455000,-151.0,0.00029387,7]
[422328076,1778825455000,-471.106446,0.00029349,7]
[422328078,1778825455000,-471.106446,0.00029349,7]
[422328077,1778825455000,-471.106446,0.00029349,7]
[422328075,1778825455000,-159.0,0.00029333,3]
[422328072,1778825455000,-668.65185757,0.00029252,2]
[422328073,1778825455000,-747.8093786,0.00029252,2]
[422328069,1778825455000,-475.66,0.00029232,7]
[422328071,1778825455000,-1234.34,0.00029232,7]
[422328074,1778825455000,-608.0,0.00029273,4]
[422328067,1778825455000,-475.34,0.00029232,7]
[422328063,1778825455000,-476.07,0.00029232,7]
[422328065,1778825455000,-758.04,0.00029232,7]
[422328066,1778825455000,-1074.57,0.00029232,7]
[422328081,1778825455000,-1633.929574,0.00029349,7]
[422328068,1778825455000,-742.31,0.00029232,7]
[422328064,1778825455000,-1198.36,0.00029232,7]
[422328060,1778825455000,-202.81146805,0.00029137,7]
[422328062,1778825455000,-1709.78453167,0.00029224,30]
[422328061,1778825455000,-2392.84779913,0.00029198,2]
[422328070,1778825455000,-1402.96,0.00029232,7]
[422328085,1778825455000,-151.0,0.00029387,7]
[422328087,1778825455000,-159.930884,0.00029387,7]
[422328079,1778825455000,-471.106446,0.00029349,7]
[422328104,1778825455000,-38217.0725706,0.00029868,2]
[422328103,1778825455000,-151.0,0.00029865,7]
[422328105,1778825455000,-181753.88482301,0.00029868,2]
[422328101,1778825455000,-608.0,0.00029807,4]
[422328102,1778825455000,-151.0,0.00029865,7]
[422328093,1778825455000,-150.0,0.00029534,2]
[422328092,1778825455000,-1833.39,0.000295,7]
[422328084,1778825455000,-151.0,0.00029387,7]
[422328091,1778825455000,-2392.84779913,0.00029387,2]
[422328095,1778825455000,-3007.69,0.00029576,7]
[422328096,1778825455000,-150.0,0.00029589,2]
[422328094,1778825455000,-519.96,0.00029555,30]
[422328090,1778825455000,-151.0,0.00029387,7]
[422328100,1778825455000,-708.86,0.00029801,7]
[422328099,1778825455000,-183.52110905,0.00029688,19]
[422328098,1778825455000,-817.62,0.00029665,30]
[422328089,1778825455000,-151.0,0.00029387,7]
[422328080,1778825455000,-1633.929574,0.00029349,7]
[422328082,1778825455000,-1633.929574,0.00029349,7]
[422328083,1778825455000,-1633.929574,0.00029349,7]
[422328097,1778825455000,-708.86,0.00029651,7]
[422328088,1778825455000,-151.0,0.00029387,7]
[422328106,1778825456000,-2643.52146687,0.00029868,2]
[422328107,1778825478000,300.0,0.0003,120]
[422328108,1778825489000,400.0,0.0003,120]
[422328109,1778825508000,300.0,0.0003,120]
[422328110,1778825547000,2000.0,0.00028546,120]
[422328111,1778825556000,541.66,0.00028053,120]
[422328113,1778825556000,541.66,0.00029999,120]
[422328112,1778825556000,541.66,0.00029867,120]
[422328116,1778825557000,541.66,0.00030129,120]
[422328115,1778825557000,541.66,0.00030129,120]
[422328114,1778825557000,541.66,0.00030129,120]
[422328117,1778825557000,541.66,0.00030129,120]
[422328118,1778825558000,541.82,0.00030129,120]
[422328120,1778825599000,500.0,0.00029262,120]
[422328119,1778825599000,500.0,0.00027897,120]
[422328121,1778825616000,330.0,0.00030129,120]
[422328122,1778825668000,274.85175229,0.00029212,120]
[422328123,1778825674000,698.0,0.0003013,120]
[422328126,1778825780000,500.0,0.00029999,120]
[422328125,1778825780000,500.0,0.00029867,120]
[422328124,1778825780000,500.0,0.00028053,120]
[422328130,1778825781000,461.6628529,0.00030129,120]
[422328129,1778825781000,500.0,0.00030129,120]
[422328128,1778825781000,500.0,0.00030129,120]
[422328127,1778825781000,500.0,0.00030129,120]
[422328131,1778825822000,5465.4859325,0.00030136,120]
[422328132,1778825874000,529.0,0.00029792,120]
[422328135,1778825875000,529.0,0.00029792,120]
[422328134,1778825875000,529.0,0.00029792,120]
[422328133,1778825875000,529.0,0.00029792,120]
[422328136,1778825875000,529.0,0.00029792,120]
[422328138,1778825876000,529.21564933,0.00029792,120]
[422328137,1778825876000,529.0,0.00029792,120]
[422328139,1778826197000,500.0,0.00027692,120]
[422328140,1778826198000,500.0,0.00029125,120]
[422328142,1778826284000,155.17,7.056e-05,2]
[422328141,1778826284000,155.17,5.689e-05,2]
[422328143,1778826429000,385.0,0.0003,120]
[422328144,1778826481000,166.56,0.00029792,120]
[422328152,1778826631000,-1876.2,0.00010841,2]
[422328146,1778826631000,-155.17,8.422e-05,2]
[422328148,1778826631000,-250.0,9.264e-05,2]
[422328147,1778826631000,-250.0,9.105e-05,2]
[422328149,1778826631000,-155.17,9.789e-05,2]
[422328150,1778826631000,-150.0,9.886e-05,2]
[422328154,1778826631000,-2000.0,0.00011152,2]
[422328160,1778826631000,-1200.0,0.00011371,2]
[422328153,1778826631000,-2233.73,0.00010981,2]
[422328155,1778826631000,-155.17,0.00011155,2]
[422328156,1778826631000,-150.0,0.00011202,2]
[422328157,1778826631000,-153.66,0.00011251,2]
[422328158,1778826631000,-300.0,0.00011371,2]
[422328159,1778826631000,-300.0,0.00011371,2]
[422328151,1778826631000,-150.0,9.984e-05,2]
[422328161,1778826631000,-300.0,0.00011371,2]
[422328176,1778826632000,-500.0,0.00011596,2]
[422328174,1778826632000,-500.0,0.00011596,2]
[422328178,1778826632000,-500.0,0.00011596,2]
[422328177,1778826632000,-500.0,0.00011596,2]
[422328175,1778826632000,-570.80380292,0.00011596,2]
[422328172,1778826632000,-500.0,0.00011596,2]
[422328173,1778826632000,-500.0,0.00011596,2]
[422328170,1778826632000,-500.0,0.00011596,2]
[422328168,1778826632000,-500.0,0.00011596,2]
[422328169,1778826632000,-500.0,0.00011596,2]
[422328167,1778826632000,-500.0,0.00011596,2]
[422328165,1778826632000,-500.0,0.00011596,2]
[422328162,1778826632000,-30374.15,0.00011373,2]
[422328164,1778826632000,-500.0,0.00011596,2]
[422328166,1778826632000,-500.0,0.00011596,2]
[422328163,1778826632000,-160.0,0.00011449,2]
[422328180,1778826632000,-500.0,0.00011596,2]
[422328171,1778826632000,-500.0,0.00011596,2]
[422328179,1778826632000,-500.0,0.00011596,2]
[422328205,1778826632000,-500.0,0.00011596,2]
[422328194,1778826632000,-500.0,0.00011596,2]
[422328181,1778826632000,-500.0,0.00011596,2]
[422328222,1778826632000,-31582.6964613,0.00011597,2]
[422328219,1778826632000,-204057.74622135,0.00011597,2]
[422328215,1778826632000,-500.0,0.00011596,2]
[422328217,1778826632000,-150.0,0.00011596,2]
[422328213,1778826632000,-500.0,0.00011596,2]
[422328211,1778826632000,-500.0,0.00011596,2]
[422328209,1778826632000,-500.0,0.00011596,2]
[422328203,1778826632000,-500.0,0.00011596,2]
[422328207,1778826632000,-500.0,0.00011596,2]
[422328198,1778826632000,-500.0,0.00011596,2]
[422328192,1778826632000,-500.0,0.00011596,2]
[422328188,1778826632000,-500.0,0.00011596,2]
[422328190,1778826632000,-500.0,0.00011596,2]
[422328184,1778826632000,-500.0,0.00011596,2]
[422328186,1778826632000,-500.0,0.00011596,2]
[422328196,1778826632000,-500.0,0.00011596,2]
[422328182,1778826632000,-500.0,0.00011596,2]
[422328201,1778826632000,-500.0,0.00011596,2]
[422328234,1778826638000,-500.0,0.00011796,2]
[422328227,1778826638000,-727183.66361735,0.00011597,2]
[422328228,1778826638000,-1000.0,0.00011696,2]
[422328229,1778826638000,-5000.0,0.00011697,2]
[422328230,1778826638000,-19323.94114011,0.00011697,2]
[422328232,1778826638000,-326.64736274,0.00011697,2]
[422328238,1778826638000,-28249.3218,0.00011797,2]
[422328235,1778826638000,-500.0,0.00011796,2]
[422328236,1778826638000,-592.48662075,0.00011796,2]
[422328237,1778826638000,-262.43449931,0.00011796,2]
[422328231,1778826638000,-18740.96253974,0.00011697,2]
[422328239,1778826638000,-77981.9244399,0.00011797,2]
[422328233,1778826638000,-500.0,0.00011796,2]
[422328297,1778826640000,-556.62359484,0.00011797,2]
[422328295,1778826640000,-593.14723491,0.00011797,2]
[422328296,1778826640000,-1622.0991527,0.00011797,2]
[422328322,1778826646000,-75.22258166,0.00011974,2]
[422328320,1778826646000,-243.4645521,0.00011863,2]
[422328321,1778826646000,-208.38824723,0.00011974,2]
[422328318,1778826646000,-361.12,0.00011838,2]
[422328317,1778826646000,-192.0,0.00011797,2]
[422328319,1778826646000,-674.83680202,0.00011863,2]
[422328324,1778826646000,-361.12,0.00012134,2]
[422328323,1778826646000,-139.77470234,0.00011974,2]
[422328329,1778826646000,-2000.0,0.00012547,2]
[422328326,1778826646000,-361.12,0.0001243,2]
[422328333,1778826646000,-3.49242743,0.00012694,2]
[422328332,1778826646000,-255.0,0.00012663,2]
[422328331,1778826646000,-153.66,0.00012657,2]
[422328325,1778826646000,-222.11,0.00012391,2]
[422328330,1778826646000,-176.79,0.00012603,2]
[422328327,1778826646000,-420.0,0.00012491,2]
[422328328,1778826646000,-1680.0,0.00012508,2]
[422328345,1778826669000,528.13859196,0.00027642,120]
[422328355,1778826752000,500.0,0.00027642,120]
[422328356,1778826753000,493.0,0.00029692,120]
[422328357,1778826771000,170.77,0.00030137,120]
[422328358,1778826797000,500.0,0.00027406,120]
[422328359,1778826798000,500.0,0.00029027,120]
[422328360,1778827051000,150.1,6.453e-05,2]
[422328364,1778827261000,500.0,0.00027507,120]
[422328366,1778827357000,500.0,0.00027642,120]
[422328369,1778827403000,500.0,0.0002847,120]
[422328370,1778827417000,750.0,0.00030137,120]
[422328371,1778827433000,500.0,0.0003013,120]
[422328372,1778827440000,5000.0,0.00030136,120]
[422328373,1778827461000,158.0,0.000298,120]
[422328375,1778827757000,-150.0,8.519e-05,2]
[422328376,1778827830000,150.15,6.272e-05,2]
[422328378,1778827832000,-340.543442,0.00011308,2]
[422328379,1778827832000,-464.654,0.00011365,2]
[422328380,1778827832000,-824.51969828,0.00011497,2]
[422328381,1778827832000,-1200.0,0.00011522,2]
[422328382,1778827832000,-300.0,0.00011523,2]
[422328388,1778827832000,-328.83992189,0.00011524,2]
[422328383,1778827832000,-66.68285972,0.00011523,2]
[422328384,1778827832000,-83.31714028,0.00011523,2]
[422328387,1778827832000,-673.90711308,0.00011524,2]
[422328389,1778827832000,-1504.53927557,0.00011524,2]
[422328385,1778827832000,-270.0,0.00011523,2]
[422328386,1778827832000,-245.98498972,0.00011524,2]
[422328410,1778827838000,-1030.30186262,0.00011624,2]
[422328409,1778827838000,-25738.64831529,0.00011624,2]
[422328408,1778827838000,-969.58392621,0.00011624,2]
[422328407,1778827838000,-79121.14018219,0.00011624,2]
[422328406,1778827838000,-17436.47921001,0.00011524,2]
[422328405,1778827838000,-14204.78507314,0.00011524,2]
[422328420,1778827840000,-34630.77393725,0.00011624,2]
[422328424,1778827840000,-801.04957216,0.00011624,2]
[422328425,1778827840000,-3532.20722519,0.00011624,2]
[422328422,1778827840000,-7744.68772653,0.00011624,2]
[422328423,1778827840000,-752.99552532,0.00011624,2]
[422328421,1778827840000,-2027.67609915,0.00011624,2]
[422328431,1778827846000,-3765.51645687,0.00011624,2]
[422328430,1778827846000,-8047.52739102,0.00011624,2]
[422328460,1778827847000,-255.0,0.00012583,2]
[422328462,1778827847000,-1680.0,0.00012674,2]
[422328464,1778827847000,-214.57,0.00012795,2]
[422328463,1778827847000,-11008.48533488,0.00012694,2]
[422328465,1778827847000,-187.6,0.00012795,2]
[422328466,1778827847000,-180.73,0.00012858,2]